bitfinex/quotes_BTCUSD_20250616
["timestamp","ask_amount","ask_price","bid_price","bid_amount"]
[1750054048761,1.37630028,106750.0,106740.0,0.003]
[1750054048970,1.36970211,106750.0,106740.0,0.003]
[1750054049153,1.37630036,106750.0,106740.0,0.003]
[1750054049384,1.36970211,106750.0,106740.0,0.003]
[1750054049593,1.37630036,106750.0,106740.0,0.003]
[1750054051014,1.37730037,106750.0,106740.0,0.003]
[1750054051238,1.37070211,106750.0,106740.0,0.003]
[1750054051460,1.4518638,106750.0,106740.0,0.003]
[1750054051683,0.3716,106740.0,106730.0,0.15628]
[1750054051973,1.24200994,106740.0,106730.0,0.15628]
[1750054052201,1.26447345,106740.0,106730.0,0.15628]
[1750054052432,1.27107171,106740.0,106720.0,0.04152]
[1750054052638,0.43520497,106730.0,106720.0,0.1978]
[1750054053743,0.43520497,106730.0,106720.0,0.2161]
[1750054053954,0.43520497,106730.0,106720.0,0.2008]
[1750054054609,0.80750497,106730.0,106720.0,0.003]
[1750054054813,0.83659065,106730.0,106710.0,0.15628]
[1750054055028,0.43520497,106720.0,106710.0,0.15628]
[1750054055236,0.43520497,106720.0,106700.0,0.0326]
[1750054055446,0.43520497,106720.0,106700.0,0.12884176]
[1750054055678,0.43520497,106710.0,106700.0,0.07412]
[1750054055893,0.43520497,106710.0,106700.0,0.2304]
[1750054056299,0.43520497,106710.0,106700.0,0.0326]
[1750054056499,0.43520497,106710.0,106700.0,0.18888]
[1750054056839,0.00104714,106710.0,106700.0,0.19888]
[1750054057044,0.43625211,106710.0,106700.0,0.19888]
[1750054057247,0.48142732,106710.0,106700.0,0.031]
[1750054057483,0.43625211,106710.0,106700.0,0.17128]
[1750054060635,0.43625211,106710.0,106700.0,0.18758]
[1750054061870,0.44577905,106710.0,106700.0,0.18758]
[1750054062827,0.44577905,106710.0,106700.0,0.0313]
[1750054063047,0.44577905,106710.0,106700.0,0.18758]
[1750054063506,0.44577905,106710.0,106700.0,0.20378]
[1750054065189,0.00104714,106710.0,106700.0,0.49282604]
[1750054065373,0.00104714,106710.0,106700.0,0.7453078]
[1750054066859,0.00104714,106710.0,106700.0,0.31010283]
[1750054068564,0.00104714,106710.0,106700.0,0.34150176]
[1750054069110,0.00104714,106710.0,106700.0,0.18526176]
[1750054069315,0.00104714,106710.0,106700.0,0.34150176]
[1750054082711,4.714e-05,106710.0,106700.0,0.32650176]
[1750054082920,4.714e-05,106710.0,106700.0,0.33450176]
[1750054083139,4.714e-05,106710.0,106700.0,0.17826176]
[1750054083344,4.714e-05,106710.0,106700.0,0.26040176]
[1750054084004,4.714e-05,106710.0,106700.0,0.26340176]
[1750054084510,4.714e-05,106710.0,106700.0,0.25240176]
[1750054084714,4.714e-05,106710.0,106700.0,0.26040176]
[1750054085142,4.714e-05,106710.0,106700.0,0.25440176]
[1750054085348,4.714e-05,106710.0,106700.0,0.25640176]
[1750054086828,4.714e-05,106710.0,106700.0,0.004]
[1750054087043,4.714e-05,106710.0,106700.0,0.2016]
[1750054088941,0.43546872,106710.0,106700.0,0.2016]
[1750054089418,0.43546872,106710.0,106700.0,0.16016]
[1750054089646,4.714e-05,106710.0,106700.0,0.81867256]
[1750054089963,4.714e-05,106710.0,106700.0,0.38325098]
[1750054090093,4.714e-05,106710.0,106700.0,0.81867256]
[1750054090988,4.714e-05,106710.0,106700.0,0.38325098]
[1750054095624,4.714e-05,106710.0,106700.0,0.77023596]
[1750054096680,4.714e-05,106710.0,106700.0,1.06903596]
[1750054097785,4.714e-05,106710.0,106700.0,1.06503596]
[1750054097989,4.714e-05,106710.0,106700.0,1.06703596]
[1750054098421,4.714e-05,106710.0,106700.0,1.06903596]
[1750054101235,4.714e-05,106710.0,106700.0,1.11043596]
[1750054101526,4.714e-05,106710.0,106700.0,1.31662116]
[1750054101740,4.714e-05,106710.0,106700.0,1.02719287]
[1750054101957,4.714e-05,106710.0,106700.0,0.64957943]
[1750054102167,4.714e-05,106710.0,106700.0,1.04593586]
[1750054109222,4.714e-05,106710.0,106700.0,0.82026116]
[1750054109448,4.714e-05,106710.0,106700.0,1.03652441]
[1750054109680,4.714e-05,106710.0,106700.0,1.02715287]
[1750054109894,4.714e-05,106710.0,106700.0,1.04589604]
[1750054110576,4.714e-05,106710.0,106700.0,1.02715287]
[1750054110804,4.714e-05,106710.0,106700.0,1.0365245]
[1750054111308,4.714e-05,106710.0,106700.0,1.34469604]
[1750054111519,4.714e-05,106710.0,106700.0,1.3353245]
[1750054111728,4.714e-05,106710.0,106700.0,1.34469604]
[1750054111940,4.714e-05,106710.0,106700.0,1.3353245]
[1750054112144,4.714e-05,106710.0,106700.0,1.34469604]
[1750054112722,4.714e-05,106710.0,106700.0,1.3353245]
[1750054113152,4.714e-05,106710.0,106700.0,1.34469604]
[1750054113348,4.714e-05,106710.0,106700.0,1.34469551]
[1750054117700,4.714e-05,106710.0,106700.0,1.14717551]
[1750054117906,4.714e-05,106710.0,106700.0,1.34461551]
[1750054118954,4.714e-05,106710.0,106700.0,1.33524406]
[1750054119895,4.714e-05,106710.0,106700.0,1.32587252]
[1750054120103,4.714e-05,106710.0,106700.0,1.31650089]
[1750054120368,4.714e-05,106710.0,106700.0,1.32587314]
[1750054120817,4.714e-05,106710.0,106700.0,1.33524485]
[1750054122005,4.714e-05,106710.0,106700.0,1.34461648]
[1750054122212,4.714e-05,106710.0,106700.0,1.33524485]
[1750054122429,4.714e-05,106710.0,106700.0,1.34461648]
[1750054122644,4.714e-05,106710.0,106700.0,1.33524485]
[1750054123156,4.714e-05,106710.0,106700.0,1.34461648]
[1750054123574,4.714e-05,106710.0,106700.0,1.33524441]
[1750054123777,4.714e-05,106710.0,106700.0,1.32587278]
[1750054124096,4.714e-05,106710.0,106700.0,1.33524441]
[1750054124587,4.714e-05,106710.0,106700.0,1.32587278]
[1750054125585,4.714e-05,106710.0,106700.0,1.33524432]
[1750054126449,4.714e-05,106710.0,106700.0,1.34461577]
[1750054126659,4.714e-05,106710.0,106700.0,1.33524432]
[1750054127081,4.714e-05,106710.0,106700.0,1.34461577]
[1750054128318,4.714e-05,106710.0,106700.0,1.34261577]
[1750054128539,4.714e-05,106710.0,106700.0,1.33324432]
[1750054128749,4.714e-05,106710.0,106700.0,1.34561577]
[1750054129377,4.714e-05,106710.0,106700.0,1.34361577]
[1750054129546,4.714e-05,106710.0,106700.0,1.34861577]
[1750054132884,4.714e-05,106710.0,106700.0,1.39684161]
[1750054133967,4.714e-05,106710.0,106700.0,1.89659328]
[1750054134382,4.714e-05,106710.0,106700.0,1.48954746]
[1750054136488,4.714e-05,106710.0,106700.0,1.05433664]
[1750054136690,4.714e-05,106710.0,106700.0,1.48954746]
[1750054137115,4.714e-05,106710.0,106700.0,1.5170901]
[1750054140596,4.714e-05,106710.0,106700.0,2.29230092]
[1750054140803,4.714e-05,106710.0,106700.0,2.4173638]
[1750054141205,4.714e-05,106710.0,106700.0,2.34230092]
[1750054141622,4.714e-05,106710.0,106700.0,2.33930092]
[1750054141837,4.714e-05,106710.0,106700.0,2.41820721]
[1750054142391,4.714e-05,106710.0,106700.0,2.41320721]
[1750054142786,4.714e-05,106710.0,106700.0,2.41820721]
[1750054142987,4.714e-05,106710.0,106700.0,2.51701721]
[1750054143235,7.14e-06,106710.0,106700.0,2.53593952]
[1750054143905,0.0321,106740.0,106720.0,0.27161498]
[1750054144130,0.03214713,106740.0,106730.0,0.74040372]
[1750054144368,0.03214713,106740.0,106730.0,0.73806192]
[1750054144593,0.03214713,106740.0,106730.0,0.74743118]
[1750054144811,4.713e-05,106740.0,106730.0,1.24298176]
[1750054145027,0.00204713,106740.0,106730.0,1.24298194]
[1750054145246,0.00204713,106740.0,106730.0,1.33913116]
[1750054145466,0.00204713,106740.0,106730.0,1.34850015]
[1750054145677,0.00204713,106740.0,106730.0,1.34850024]
[1750054145678,0.00104713,106740.0,106730.0,1.34850024]
[1750054145901,0.00304713,106740.0,106730.0,1.35786923]
[1750054146118,0.00304713,106740.0,106730.0,1.3578688]
[1750054146340,0.00404713,106740.0,106730.0,1.3391309]
[1750054146552,0.00404713,106740.0,106730.0,1.32976182]
[1750054146771,0.01944713,106740.0,106730.0,1.3391309]
[1750054147014,0.01944713,106740.0,106730.0,1.29054066]
[1750054147638,0.01944713,106740.0,106730.0,1.29990974]
[1750054147846,0.01944713,106740.0,106730.0,1.29054066]
[1750054148053,0.03504713,106740.0,106730.0,1.29990974]
[1750054148258,0.03504713,106740.0,106730.0,1.29054066]
[1750054148678,0.03504713,106740.0,106730.0,1.28117149]
[1750054148895,0.03504713,106740.0,106730.0,0.88510936]
[1750054149114,0.03504713,106740.0,106730.0,0.60157141]
[1750054150748,0.03504713,106740.0,106730.0,0.61094084]
[1750054151395,0.03504713,106740.0,106730.0,0.60157141]
[1750054151595,0.03504713,106740.0,106730.0,0.31214798]
[1750054151820,0.03504713,106740.0,106730.0,0.30277855]
[1750054152026,0.03504713,106740.0,106730.0,0.39892777]
[1750054152944,0.03504713,106740.0,106730.0,0.78562064]
[1750054153164,0.03504713,106740.0,106730.0,0.79499007]
[1750054153595,0.03504713,106740.0,106730.0,0.60505527]
[1750054153804,0.03504713,106740.0,106730.0,0.99174814]
[1750054154019,0.03504713,106740.0,106730.0,0.9823788]
[1750054154230,0.03504713,106740.0,106730.0,0.99174814]
[1750054155114,0.03304713,106740.0,106730.0,0.79499007]
[1750054155329,0.03104713,106740.0,106730.0,0.80435941]
[1750054155538,0.03104713,106740.0,106730.0,0.80535941]
[1750054155934,0.03104713,106740.0,106730.0,0.79599007]
[1750054156147,0.03104713,106740.0,106730.0,0.78662064]
[1750054156319,0.03104713,106740.0,106730.0,0.79598998]
[1750054156853,0.03104713,106740.0,106730.0,0.80535924]
[1750054157277,0.03104713,106740.0,106730.0,0.59874998]
[1750054157483,0.03104713,106740.0,106730.0,0.99270797]
[1750054157693,0.03104713,106740.0,106730.0,0.98333871]
[1750054158331,0.03104713,106740.0,106730.0,0.79550797]
[1750054158578,0.03104713,106740.0,106730.0,0.98333871]
[1750054158805,0.03104713,106740.0,106730.0,0.99270797]
[1750054159013,0.03104713,106740.0,106730.0,0.98333871]
[1750054159231,0.03104713,106740.0,106730.0,0.79595007]
[1750054160321,0.03104713,106740.0,106730.0,0.58938064]
[1750054160530,0.03104713,106740.0,106730.0,0.79595007]
[1750054160748,0.03104713,106740.0,106730.0,0.78658064]
[1750054160965,0.03104713,106740.0,106730.0,0.29444176]
[1750054161836,0.03104713,106740.0,106730.0,0.30381364]
[1750054162887,0.03104713,106740.0,106730.0,0.69050651]
[1750054168858,0.03104713,106740.0,106730.0,0.73888778]
[1750054169056,0.03104713,106740.0,106730.0,0.835037]
[1750054171002,0.03104713,106740.0,106730.0,0.637837]
[1750054171212,0.03104713,106740.0,106730.0,0.834957]
[1750054171641,0.01544713,106740.0,106730.0,0.834957]
[1750054172402,4.713e-05,106740.0,106730.0,1.48552711]
[1750054172684,4.713e-05,106740.0,106730.0,1.58056796]
[1750054172910,4.713e-05,106740.0,106730.0,1.60872596]
[1750054173147,4.713e-05,106740.0,106730.0,2.37236857]
[1750054173381,4.713e-05,106740.0,106730.0,2.37136857]
[1750054173615,4.713e-05,106740.0,106730.0,2.37636857]
[1750054173849,4.713e-05,106740.0,106730.0,2.37936857]
[1750054175065,4.713e-05,106740.0,106730.0,1.89577361]
[1750054175285,4.713e-05,106740.0,106730.0,1.88777361]
[1750054175711,4.713e-05,106740.0,106730.0,1.89877361]
[1750054176784,4.713e-05,106740.0,106730.0,1.70165361]
[1750054176995,4.713e-05,106740.0,106730.0,1.89877361]
[1750054178040,4.713e-05,106740.0,106730.0,1.70165361]
[1750054178271,4.713e-05,106740.0,106730.0,1.89873361]
[1750054178482,4.713e-05,106740.0,106730.0,1.70165361]
[1750054178693,4.713e-05,106740.0,106730.0,1.82388386]
[1750054179968,4.713e-05,106740.0,106730.0,1.62680386]
[1750054180183,4.713e-05,106740.0,106730.0,1.82388386]
[1750054181780,4.713e-05,106740.0,106730.0,1.43733054]
[1750054182020,4.713e-05,106740.0,106730.0,1.82388386]
[1750054186343,4.713e-05,106740.0,106730.0,1.62680386]
[1750054186569,4.713e-05,106740.0,106730.0,1.82388386]
[1750054189421,4.713e-05,106740.0,106730.0,1.43733054]
[1750054189637,4.713e-05,106740.0,106730.0,1.82388386]
[1750054190064,4.713e-05,106740.0,106730.0,1.43733054]
[1750054190197,4.713e-05,106740.0,106730.0,1.82388386]
[1750054193399,4.713e-05,106740.0,106730.0,1.43733054]
[1750054193656,4.713e-05,106740.0,106730.0,2.09396386]
[1750054194517,4.713e-05,106740.0,106730.0,1.70741054]
[1750054194675,4.713e-05,106740.0,106730.0,2.09396386]
[1750054194993,4.713e-05,106740.0,106730.0,2.09392386]
[1750054195614,4.713e-05,106740.0,106730.0,1.70737054]
[1750054195762,4.713e-05,106740.0,106730.0,1.69237054]
[1750054195974,4.713e-05,106740.0,106730.0,2.07892386]
[1750054196171,4.713e-05,106740.0,106730.0,1.30557408]
[1750054196380,0.03164713,106740.0,106730.0,1.83911691]
[1750054196598,0.03164713,106740.0,106730.0,1.89848573]
[1750054196858,0.03164713,106740.0,106730.0,1.8875628]
[1750054197506,0.03164713,106740.0,106730.0,1.90630053]
[1750054197708,0.03164713,106740.0,106730.0,2.05244975]
[1750054198917,0.03164713,106740.0,106730.0,2.00410144]
[1750054200100,0.03164713,106740.0,106730.0,1.70530858]
[1750054200229,0.03164713,106740.0,106730.0,1.30928894]
[1750054200475,0.03164713,106740.0,106730.0,1.31865776]
[1750054201227,0.03164713,106740.0,106730.0,1.30928894]
[1750054201447,0.03164713,106740.0,106730.0,1.61745062]
[1750054201858,0.03164713,106740.0,106730.0,1.61741062]
[1750054202076,0.03164713,106740.0,106730.0,1.35167298]
[1750054202288,0.03164713,106740.0,106730.0,1.94469296]
[1750054202499,0.03164713,106740.0,106730.0,1.53581504]
[1750054203167,0.03164713,106740.0,106730.0,1.53581531]
[1750054203371,0.03164713,106740.0,106730.0,1.02716535]
[1750054203574,0.03164713,106740.0,106730.0,1.12331457]
[1750054203798,0.03164713,106740.0,106730.0,1.32007238]
[1750054204334,0.03164713,106740.0,106730.0,0.94279003]
[1750054204549,0.03164713,106740.0,106730.0,1.32944085]
[1750054204767,0.03164713,106740.0,106730.0,1.32007194]
[1750054204985,0.03164713,106740.0,106730.0,1.32944076]
[1750054205638,4.713e-05,106740.0,106730.0,1.32944076]
[1750054206090,4.713e-05,106740.0,106730.0,1.34398161]
[1750054206307,4.713e-05,106740.0,106730.0,1.42698161]
[1750054206516,4.713e-05,106740.0,106730.0,1.41058161]
[1750054206751,4.713e-05,106740.0,106730.0,1.39398161]
[1750054209414,4.713e-05,106740.0,106730.0,1.00733079]
[1750054209620,4.713e-05,106740.0,106730.0,1.39398161]
[1750054210222,0.03204713,106740.0,106730.0,1.14698161]
[1750054210429,0.03204713,106740.0,106730.0,1.34398118]
[1750054211634,0.03204713,106740.0,106730.0,1.31587446]
[1750054211792,0.03204713,106740.0,106730.0,1.32524345]
[1750054212039,0.03204713,106740.0,106730.0,1.01708186]
[1750054212465,0.03204713,106740.0,106730.0,1.03581993]
[1750054213260,0.03204713,106740.0,106730.0,1.04518884]
[1750054216171,0.03204713,106740.0,106730.0,1.04518823]
[1750054216376,4.713e-05,106740.0,106730.0,1.04518823]
[1750054216765,4.713e-05,106740.0,106730.0,1.03581941]
[1750054217189,4.713e-05,106740.0,106730.0,1.04518823]
[1750054217969,4.713e-05,106740.0,106730.0,1.33461941]
[1750054218173,4.713e-05,106740.0,106730.0,1.34398823]
[1750054218701,4.713e-05,106740.0,106730.0,1.33461941]
[1750054219204,4.713e-05,106740.0,106730.0,1.34398823]
[1750054220486,4.713e-05,106740.0,106730.0,1.14698823]
[1750054220719,4.713e-05,106740.0,106730.0,1.34394823]
[1750054220952,4.713e-05,106740.0,106730.0,1.39226561]
[1750054221199,0.01644713,106740.0,106730.0,1.39226561]
[1750054221424,4.713e-05,106740.0,106730.0,1.29611639]
[1750054224832,4.713e-05,106740.0,106730.0,0.86114819]
[1750054225040,4.713e-05,106740.0,106730.0,1.29611639]
[1750054225298,4.713e-05,106740.0,106730.0,0.86114819]
[1750054225505,4.713e-05,106740.0,106730.0,1.39226561]
[1750054225715,4.713e-05,106740.0,106730.0,1.29611639]
[1750054226763,4.713e-05,106740.0,106730.0,1.09915639]
[1750054226976,4.713e-05,106740.0,106730.0,1.29611639]
[1750054227439,0.01654713,106740.0,106730.0,0.60280237]
[1750054227673,0.03264713,106740.0,106730.0,1.25346882]
[1750054227886,0.03264713,106740.0,106730.0,1.34961804]
[1750054228096,0.03264713,106740.0,106730.0,1.35898695]
[1750054228507,0.03264713,106740.0,106730.0,1.36835577]
[1750054228996,0.03264713,106740.0,106730.0,1.17139577]
[1750054229208,0.03264713,106740.0,106730.0,1.36835577]
[1750054229628,0.03264713,106740.0,106730.0,1.35898695]
[1750054229850,0.03264713,106740.0,106730.0,1.34961804]
[1750054230048,0.03264713,106740.0,106730.0,1.34024905]
[1750054230276,0.03264713,106740.0,106730.0,1.34961822]
[1750054230481,0.03264713,106740.0,106730.0,1.3589873]
[1750054230684,0.03264713,106740.0,106730.0,1.34961822]
[1750054230887,0.03264713,106740.0,106730.0,1.3589873]
[1750054231347,0.03264713,106740.0,106730.0,1.26117866]
[1750054231552,4.713e-05,106740.0,106730.0,1.26117866]
[1750054232339,4.713e-05,106740.0,106730.0,1.27737866]
[1750054234374,4.713e-05,106740.0,106730.0,1.08041866]
[1750054234584,4.713e-05,106740.0,106730.0,1.27733866]
[1750054234788,4.713e-05,106740.0,106730.0,1.37348788]
[1750054236231,4.713e-05,106740.0,106730.0,0.93851968]
[1750054236441,4.713e-05,106740.0,106730.0,1.37348788]
[1750054236563,4.713e-05,106740.0,106730.0,0.93851968]
[1750054236778,4.713e-05,106740.0,106730.0,1.37348788]
[1750054237941,4.713e-05,106740.0,106730.0,0.78279968]
[1750054238143,4.713e-05,106740.0,106730.0,1.37348797]
[1750054238348,0.03194713,106740.0,106730.0,1.37348797]
[1750054238785,0.03194713,106740.0,106730.0,0.92915086]
[1750054239005,0.03194713,106740.0,106730.0,1.37348805]
[1750054239211,0.03194713,106740.0,106730.0,1.38285696]
[1750054239504,0.03194713,106740.0,106730.0,1.15782998]
[1750054239710,0.03194713,106740.0,106730.0,1.37348823]
[1750054239853,0.03194713,106740.0,106730.0,1.38285714]
[1750054240197,0.03194713,106740.0,106730.0,1.37348823]
[1750054240608,0.03194713,106740.0,106730.0,1.38285705]
[1750054241638,0.03194713,106740.0,106730.0,0.93852003]
[1750054241776,0.03194713,106740.0,106730.0,1.38285714]
[1750054242189,0.03194713,106740.0,106730.0,1.39222596]
[1750054242637,0.03194713,106740.0,106730.0,1.38285714]
[1750054243686,0.03194713,106740.0,106730.0,1.39222596]
[1750054243905,0.03194713,106740.0,106730.0,1.38285714]
[1750054244550,0.03194713,106740.0,106730.0,1.39222596]
[1750054244963,0.03194713,106740.0,106730.0,0.94788894]
[1750054245168,0.03194713,106740.0,106730.0,1.39222596]
[1750054245373,0.03194713,106740.0,106730.0,0.71769019]
[1750054245583,0.03194713,106740.0,106730.0,1.36831646]
[1750054246479,0.03194713,106740.0,106730.0,1.35894747]
[1750054246810,0.03194713,106740.0,106730.0,1.34957839]
[1750054246961,0.03194713,106740.0,106730.0,1.05650917]
[1750054247172,0.03194713,106740.0,106730.0,0.87854184]
[1750054247369,0.03194713,106740.0,106730.0,1.0848311]
[1750054247868,0.03194713,106740.0,106730.0,1.28158917]
[1750054248277,0.03194713,106740.0,106730.0,1.29095834]
[1750054248478,0.03194713,106740.0,106730.0,1.39647655]
[1750054248679,0.03194713,106740.0,106730.0,1.39647664]
[1750054249076,0.03194713,106740.0,106730.0,1.20892563]
[1750054249287,0.03194713,106740.0,106730.0,1.40584563]
[1750054249827,0.03194713,106740.0,106730.0,1.39647664]
[1750054250368,0.03194713,106740.0,106730.0,1.38710756]
[1750054250583,0.03194713,106740.0,106730.0,0.94277019]
[1750054250736,0.03194713,106740.0,106730.0,1.37773839]
[1750054250947,0.03194713,106740.0,106730.0,1.38710756]
[1750054251173,0.03194713,106740.0,106730.0,1.39647664]
[1750054251998,0.03194713,106740.0,106730.0,1.30032742]
[1750054252721,0.03194713,106740.0,106730.0,1.29095834]
[1750054252948,0.03194713,106740.0,106730.0,0.85599014]
[1750054253160,0.03194713,106740.0,106730.0,1.30032742]
[1750054253626,0.03194713,106740.0,106730.0,0.84662097]
[1750054253915,0.03194713,106740.0,106730.0,1.30032742]
[1750054254203,0.03194713,106740.0,106730.0,1.04084037]
[1750054254444,0.01,106770.0,106760.0,0.24334364]
[1750054254681,0.01047133,106770.0,106760.0,0.16078261]
[1750054254921,0.04107133,106770.0,106760.0,0.30866261]
[1750054255166,0.04107133,106770.0,106760.0,1.08007296]
[1750054255396,0.04107133,106770.0,106760.0,1.08943914]
[1750054256466,0.04107133,106770.0,106760.0,1.11803501]
[1750054256882,0.04107133,106770.0,106760.0,1.06948903]
[1750054257298,0.04107133,106770.0,106760.0,0.87160903]
[1750054257518,0.04107133,106770.0,106760.0,0.97859293]
[1750054257770,0.04107133,106770.0,106760.0,0.39433071]
[1750054257982,0.04107133,106770.0,106760.0,0.60145698]
[1750054258287,0.04107133,106770.0,106760.0,0.60145636]
[1750054258755,0.04107133,106770.0,106760.0,0.69760558]
[1750054258992,0.04107133,106770.0,106760.0,0.67887313]
[1750054259275,0.04107133,106770.0,106760.0,0.6882394]
[1750054259510,0.04107133,106770.0,106760.0,0.35169051]
[1750054259736,0.04107133,106770.0,106760.0,0.54140985]
[1750054259970,0.04107133,106770.0,106760.0,0.13944176]
[1750054260206,0.04107133,106770.0,106760.0,0.09824176]
[1750054260443,0.04107133,106770.0,106760.0,0.25500176]
[1750054260677,0.04107133,106770.0,106760.0,0.09824176]
[1750054260916,0.04107133,106770.0,106760.0,0.25504176]
[1750054261384,0.04107133,106770.0,106760.0,0.09624176]
[1750054261732,0.04207133,106770.0,106760.0,0.25300176]
[1750054262755,0.04207133,106770.0,106760.0,0.09624176]
[1750054262981,0.04207133,106770.0,106750.0,0.04176]
[1750054262982,0.0304,106760.0,106750.0,0.04176]
[1750054263196,0.0304,106760.0,106750.0,0.29464176]
[1750054264342,0.0304,106760.0,106750.0,0.29864176]
[1750054265769,0.41682222,106760.0,106750.0,0.10024176]
[1750054266106,0.41682222,106760.0,106750.0,0.25684176]
[1750054266715,0.41682222,106760.0,106750.0,0.004]
[1750054266855,0.79955158,106760.0,106750.0,0.004]
[1750054267068,0.79955158,106760.0,106750.0,0.16056]
[1750054267281,0.75682222,106760.0,106750.0,0.16056]
[1750054267487,0.75682222,106760.0,106750.0,0.1606]
[1750054267952,0.75682222,106760.0,106750.0,0.004]
[1750054268271,0.75682222,106760.0,106750.0,0.1606]
[1750054269252,0.75682222,106760.0,106750.0,0.16056]
[1750054269455,0.75682222,106760.0,106750.0,0.16048]
[1750054270504,0.3704,106760.0,106750.0,0.16048]
[1750054271062,0.3704,106760.0,106750.0,0.06048]
[1750054271262,0.75682222,106760.0,106750.0,0.06048]
[1750054271740,0.3704,106760.0,106750.0,0.06048]
[1750054271955,0.75782222,106760.0,106750.0,0.06048]
[1750054273165,0.033,106750.0,106740.0,0.07519857]
[1750054273370,0.033,106750.0,106740.0,0.37028033]
[1750054274506,0.033,106750.0,106740.0,0.37228033]
[1750054274718,0.04239573,106750.0,106740.0,0.37228033]
[1750054275419,0.033,106750.0,106740.0,0.37228033]
[1750054276935,0.033,106750.0,106740.0,0.29696176]
[1750054277149,0.04240596,106750.0,106740.0,0.29696176]
[1750054277365,0.033,106750.0,106740.0,0.29696176]
[1750054278820,0.033,106750.0,106740.0,0.09824176]
[1750054279022,0.033,106750.0,106740.0,0.29596176]
[1750054279226,0.033,106750.0,106740.0,0.29496176]
[1750054279602,0.034,106750.0,106740.0,0.29496176]
[1750054288582,0.034,106750.0,106740.0,0.29460176]
[1750054288962,0.46906456,106750.0,106740.0,0.29460176]
[1750054289840,0.46906456,106750.0,106740.0,0.09624176]
[1750054290063,0.0313,106740.0,106730.0,0.04176]
[1750054290287,0.46636456,106740.0,106730.0,0.29456176]
[1750054290728,0.46636456,106740.0,106730.0,0.09624176]
[1750054290944,0.41819845,106740.0,106730.0,0.09624176]
[1750054291165,0.42881829,106740.0,106710.0,0.27008]
[1750054291387,0.42881829,106740.0,106720.0,0.29468176]
[1750054291388,0.38689845,106730.0,106720.0,0.29468176]
[1750054291808,0.42881829,106740.0,106720.0,0.29468176]
[1750054292055,0.0322,106730.0,106720.0,0.29468176]
[1750054292479,0.0322,106730.0,106720.0,0.09624176]
[1750054292660,0.0322,106730.0,106720.0,0.29493634]
[1750054292899,0.06484359,106730.0,106720.0,0.29493634]
[1750054293109,0.07415942,106730.0,106720.0,0.29493634]
[1750054293342,0.06484359,106730.0,106720.0,0.29493634]
[1750054293980,0.06884359,106730.0,106720.0,0.29493634]
[1750054294810,0.0362,106730.0,106720.0,0.29493634]
[1750054295120,0.0362,106730.0,106720.0,0.09649634]
[1750054295329,0.0362,106730.0,106720.0,0.29481634]
[1750054298250,0.004,106730.0,106720.0,0.57359336]
[1750054298528,0.004,106730.0,106720.0,0.78809336]
[1750054298790,0.004,106730.0,106720.0,0.88424258]
[1750054299240,0.004,106730.0,106720.0,0.89361289]
[1750054299444,0.004,106730.0,106720.0,0.88424258]
[1750054299935,0.004,106730.0,106720.0,0.79746367]
[1750054300970,0.004,106730.0,106720.0,0.78809336]
[1750054301697,0.004,106730.0,106720.0,0.79746367]
[1750054302712,0.004,106730.0,106720.0,0.78809336]
[1750054303291,0.004,106730.0,106720.0,0.71289479]
[1750054303496,0.004,106730.0,106720.0,0.7222651]
[1750054303714,0.004,106730.0,106720.0,0.71289479]
[1750054304245,0.004,106730.0,106720.0,0.80904401]
[1750054304449,0.004,106730.0,106720.0,0.71289479]
[1750054305342,0.004,106730.0,106720.0,0.51469479]
[1750054305544,0.004,106730.0,106720.0,0.12779634]
[1750054305780,0.004,106730.0,106720.0,0.71269479]
[1750054307526,0.004,106730.0,106720.0,0.71277479]
[1750054308116,0.004,106730.0,106720.0,0.69647479]
[1750054309140,0.004,106730.0,106720.0,0.48339479]
[1750054309341,0.004,106730.0,106720.0,0.29445634]
[1750054311259,0.004,106730.0,106720.0,0.29449634]
[1750054311487,0.004,106730.0,106720.0,0.09649634]
[1750054311934,0.0356,106730.0,106720.0,0.29453634]
[1750054314317,0.0195,106730.0,106720.0,0.29453634]
[1750054316356,0.004,106730.0,106720.0,0.29453634]
[1750054319861,0.004,106730.0,106720.0,0.68143479]
[1750054324484,0.004,106730.0,106720.0,0.98023479]
[1750054325386,0.004,106730.0,106720.0,0.78219479]
[1750054325592,0.004,106730.0,106720.0,0.97963479]
[1750054329921,0.004,106730.0,106720.0,0.59273634]
[1750054330132,0.004,106730.0,106720.0,0.97963479]
[1750054330554,0.004,106730.0,106720.0,0.59273634]
[1750054330997,0.004,106730.0,106720.0,1.02790076]
[1750054331196,0.004,106730.0,106720.0,0.59273634]
[1750054331403,0.004,106730.0,106720.0,1.02790076]
[1750054334189,0.004,106730.0,106720.0,0.83046076]
[1750054334405,0.004,106730.0,106720.0,1.02778076]
[1750054334629,0.004,106730.0,106720.0,1.02774076]
[1750054340837,0.004,106730.0,106720.0,0.39529634]
[1750054341291,0.47096442,106730.0,106720.0,0.09649634]
[1750054341564,0.51816086,106730.0,106720.0,0.29373634]
[1750054341762,0.08299644,106730.0,106720.0,0.29373634]
[1750054341983,0.08299644,106730.0,106720.0,0.29377634]
[1750054342200,0.47096442,106730.0,106720.0,0.09649634]
[1750054342411,0.47096442,106730.0,106720.0,0.29377634]
[1750054343022,0.47096442,106730.0,106720.0,0.09649634]
[1750054343239,0.47096442,106730.0,106720.0,0.29377634]
[1750054344894,0.0358,106730.0,106720.0,0.29377634]
[1750054347239,0.0358,106730.0,106720.0,0.09649634]
[1750054347436,0.0358,106730.0,106720.0,0.29373634]
[1750054351803,0.0358,106730.0,106720.0,0.36893491]
[1750054352454,0.004,106730.0,106720.0,0.36893491]
[1750054352682,0.004,106730.0,106720.0,0.75585006]
[1750054354150,0.004,106730.0,106720.0,1.05465006]
[1750054356234,0.004,106730.0,106720.0,0.59253634]
[1750054356699,0.0352,106730.0,106720.0,0.59253634]
[1750054358637,0.004,106730.0,106720.0,0.59253634]
[1750054359275,0.004,106730.0,106720.0,0.66580435]
[1750054359482,0.004,106730.0,106720.0,0.59253634]
[1750054360659,0.004,106730.0,106720.0,0.78221149]
[1750054360890,0.004,106730.0,106720.0,1.02513234]
[1750054366473,0.004,106730.0,106720.0,1.00923234]
[1750054374805,0.004,106730.0,106720.0,1.02483234]
[1750054375041,0.004,106730.0,106720.0,0.99383234]
[1750054376996,0.004,106730.0,106720.0,1.04206286]
[1750054380297,0.004,106730.0,106720.0,1.05756286]
[1750054380530,0.004,106730.0,106720.0,1.45454984]
[1750054380756,0.004,106730.0,106720.0,2.27969551]
[1750054380997,0.00044995,106730.0,106720.0,2.43285263]
[1750054381212,0.001,106740.0,106730.0,0.65143682]
[1750054381430,0.001,106740.0,106730.0,1.94494966]
[1750054381643,0.001,106740.0,106730.0,1.86995914]
[1750054381857,0.01,106770.0,106750.0,0.04384085]
[1750054382081,0.0412,106770.0,106760.0,0.72842743]
[1750054382999,0.0412,106770.0,106760.0,0.29328176]
[1750054383443,0.04324713,106770.0,106760.0,0.29328176]
[1750054388152,0.04324713,106770.0,106760.0,0.36411766]
[1750054388848,0.04324713,106770.0,106760.0,0.29328176]
[1750054389906,0.01204713,106770.0,106760.0,0.69531815]